Workbook

Sheet Лист1
A1: Отчет
A2: о результатах мониторинга качества финансового менеджмента, осуществляемого главными администраторами средств районного бюджета
A5: на 1 октября 2019 года
A7: № | B7: Наименование главного администратора средств районного бюджета | C7: 1.6. Сумма внесенных изменений в бюджетную роспись в связи с уточнением ассигнований по решению Земского собрания | G7: 1.7. Сумма внесенных положительных изменений в бюджетную роспись в отчетном периоде в связи с передвижками между кодами бюджетной классификации | I7: 2.3. Своевременность принятия бюджетных обязательств | K7: 2.4. Качество прогнозирования кассовых расходов | M7: 2.5. Уровень подготовки платежных документов | O7: 2.6. Качество исполнения расходов | P7: 3.2. Полнота зачисления платежей в районный бюджет по главному администратору доходов районного бюджета | R7: 3.3. Отклонение кассового исполнения по доходам от прогноза по главному администратору доходов районного бюджета | T7: 4.3. Коэффициент сложности исполнения бюджетных ассигнований | V7: 7.3. Уровень использования субсидий бюджетными и автономными учреждениями, предоставленных на выполнение муниципальных заданий | X7: 7.4. Уровень подготовки платежных документов бюджетными и автономными учреждениями | Z7: 7.5. Качество осуществления расходов бюджетными и автономными учреждениями | AA7: И Т О Г О по главному администратору средств районного бюджета
C8: положительных | E8: отрицательных
C9: значение показателя | D9: количество баллов | E9: значение показателя | F9: количество баллов | G9: значение показателя | H9: количество баллов | I9: значение показателя | J9: количество баллов | K9: значение показателя | L9: количество баллов | M9: значение показателя | N9: количество баллов | O9: количество баллов | P9: значение показателя | Q9: количество баллов | R9: значение показателя | S9: количество баллов | T9: значение показателя | U9: количество баллов | V9: значение показателя | W9: количество баллов | X9: значение показателя | Y9: количество баллов | Z9: количество баллов | AA9: количество баллов | AB9: max возможная сумма баллов | AC9: Общий показатель качества финансового менеджмента главного администратра средств районного бюджета (гр.27/гр.28)*100%
A10: 1 | B10: 2 | C10: 3 | D10: 4 | E10: 5 | F10: 6 | G10: 7 | H10: 8 | I10: 9 | J10: 10 | K10: 11 | L10: 12 | M10: 13 | N10: 14 | O10: 15 | P10: 16 | Q10: 17 | R10: 18 | S10: 19 | T10: 20 | U10: 21 | V10: 22 | W10: 23 | X10: 24 | Y10: 25 | Z10: 26 | AA10: 27 | AB10: 28 | AC10: 29
B11: 1 группа
A12: 1 | B12: Администрация района | C12: 91.2 | D12: 8 | E12: 102 | F12: 4 | G12: 98.8 | H12: 10 | I12: 48.9 | J12: 4 | K12: 88.5 | L12: 6 | M12: 99.2 | N12: 7 | O12: 7.3 | P12: 0 | Q12: 5 | R12: 0.44 | S12: 10 | T12: 50.1 | U12: 3 | V12: 99.3 | W12: 10 | X12: 98.9 | Y12: 7 | Z12: 7.3 | AA12: =SUM(D12+F12+H12+J12+L12+N12+O12+Q12+S12+U12+W12+Y12+Z12) -> 88.6 | AB12: 125 | AC12: =SUM(AA12/AB12)*100 -> 70.88
A13: 2 | B13: Управление образования | C13: 97.5 | D13: 10 | E13: 101.2 | F13: 4 | G13: 99.7 | H13: 10 | I13: 81.2 | J13: 10 | K13: 90.7 | L13: 6 | M13: 98.3 | N13: 7 | O13: 8.7 | P13: 0 | Q13: 5 | R13: 0 | S13: 0 | T13: 887.7 | U13: 6 | V13: 90.5 | W13: 6 | X13: 97.5 | Y13: 7 | Z13: 7.3 | AA13: =SUM(D13+F13+H13+J13+L13+N13+O13+Q13+S13+U13+W13+Y13+Z13) -> 87 | AB13: 125 | AC13: =SUM(AA13/AB13)*100 -> 69.6
A14: 3 | B14: Отдел культуры | C14: 100 | D14: 10 | E14: 100 | F14: 4 | G14: 99.9 | H14: 10 | I14: 75.7 | J14: 7 | K14: 96.4 | L14: 10 | M14: 99.8 | N14: 7 | O14: 10 | P14: 0 | Q14: 5 | R14: 0 | S14: 0 | T14: 918 | U14: 10 | V14: 90.8 | W14: 6 | X14: 99.4 | Y14: 7 | Z14: 7.3 | AA14: 93.3 | AB14: 125 | AC14: 74.64
B15: 2 группа
A16: 1 | B16: Финансовое управление | C16: 80 | D16: 4 | E16: 101.5 | F16: 4 | G16: 100 | H16: 10 | I16: 46.1 | J16: 4 | K16: 98.8 | L16: 10 | M16: 100 | N16: 10 | O16: 8.7 | P16: 0 | Q16: 5 | R16: 0 | S16: 0 | T16: 76.3 | U16: 6 | AA16: =SUM(D16+F16+H16+J16+L16+N16+O16+Q16+S16+U16) -> 61.7 | AB16: 95 | AC16: =SUM(AA16/AB16)*100 -> 64.94736842
A17: 2 | B17: Управление сельского хозяйства | C17: 100 | D17: 10 | E17: 100 | F17: 4 | G17: 91.8 | H17: 8 | I17: 89.3 | J17: 10 | K17: 98.5 | L17: 10 | M17: 99.5 | N17: 7 | O17: 8.7 | P17: 0 | Q17: 5 | R17: 0 | S17: 0 | T17: 79.6 | U17: 6 | AA17: =SUM(D17+F17+H17+J17+L17+N17+O17+Q17+S17+U17) -> 68.7 | AB17: 95 | AC17: =SUM(AA17/AB17)*100 -> 72.31578947
D19: 10 | F19: 10 | H19: 10 | J19: 10 | L19: 10 | N19: 10 | O19: 10 | Q19: 5 | S19: 10 | U19: 10 | W19: 10 | Y19: 10 | Z19: 10 | AB19: =SUM(D19:Z19) -> 125
D20: =SUM(D12:D17) -> 42 | F20: =SUM(F12:F17) -> 20 | H20: =SUM(H12:H17) -> 48 | I20: =SUM(I12:I17) -> 341.2 | L20: =SUM(L12:L17) -> 42 | N20: =SUM(N12:N17) -> 38 | AB20: =SUM(D19:U19) -> 95
H21: =(D20+F20+H20)/15 -> 7.333333333 | I21: =I20/5 -> 68.24 | L21: =L20/5 -> 8.4 | N21: =N20/5 -> 7.6 | V21: =SUM(V12:V14) -> 280.6 | AC21: =SUM(AC12:AC17) -> 352.3831579
O22: =J12+L12+N12+O12 -> 24.3 | V22: =V21/3 -> 93.53333333 | AC22: =AC21/5 -> 70.47663158
O23: =J13+L13+N13+O13 -> 31.7
O24: =J14+L14+N14+O14 -> 34
O26: =J16+L16+N16+O16 -> 32.7
O27: =J17+L17+N17+O17 -> 35.7

Sheet Лист2

Sheet Лист3
